fUSD/lending_fUSD_20250115
["ID","MTS","AMOUNT","RATE_DAILY","PERIOD"]
[349063814,1736956294164,-2929.59,0.0005315,120]
[349063815,1736956294175,-1262.49,0.0005315,120]
[349063816,1736956294186,-500.0,0.0005315,120]
[349063817,1736956294196,-820.14,0.0005315,120]
[349063818,1736956294206,-604.89,0.0005315,120]
[349063819,1736956294218,-503.47329538,0.0005315,120]
[349063820,1736956294229,-500.0,0.0005315,120]
[349063821,1736956294240,-500.0,0.0005315,120]
[349063822,1736956294251,-500.0,0.0005315,120]
[349063823,1736956294262,-500.0,0.0005315,120]
[349063824,1736956294274,-500.0,0.0005315,7]
[349063825,1736956294284,-1949.77,0.0005315,120]
[349063826,1736956294297,-500.0,0.0005315,120]
[349063827,1736956294309,-500.0,0.0005315,120]
[349063828,1736956294321,-598.53,0.0005315,120]
[349063829,1736956294332,-500.0,0.0005315,120]
[349063830,1736956294344,-500.0,0.0005315,120]
[349063831,1736956294356,-566.05,0.0005315,120]
[349063832,1736956294367,-500.0,0.0005315,120]
[349063833,1736956294377,-500.0,0.0005315,120]
[349063834,1736956294388,-635.19,0.0005315,120]
[349063835,1736956294399,-2191.36,0.0005315,120]
[349063836,1736956294410,-500.0,0.0005315,120]
[349063837,1736956294421,-500.0,0.0005315,120]
[349063838,1736956294431,-500.0,0.0005315,120]
[349063839,1736956294442,-500.0,0.0005315,120]
[349063840,1736956294451,-500.0,0.0005315,120]
[349063841,1736956294463,-500.0,0.0005315,120]
[349063842,1736956294478,-744.0,0.0005315,120]
[349063843,1736956294488,-500.0,0.0005315,120]
[349063844,1736956294499,-500.0,0.0005315,120]
[349063845,1736956294510,-500.0,0.0005315,120]
[349063846,1736956294520,-906.29,0.0005315,120]
[349063847,1736956294530,-500.0,0.0005315,120]
[349063848,1736956294541,-4237.77,0.0005315,120]
[349063849,1736956294551,-500.0,0.0005315,120]
[349063850,1736956294562,-500.0,0.0005315,120]
[349063851,1736956294573,-500.0,0.0005315,120]
[349063852,1736956294582,-500.0,0.0005315,120]
[349063853,1736956294592,-500.0,0.0005315,120]
[349063854,1736956294602,-500.0,0.0005315,120]
[349063855,1736956294612,-912.14,0.0005315,120]
[349063856,1736956294622,-500.0,0.0005315,120]
[349063857,1736956294634,-500.0,0.0005315,120]
[349063858,1736956294644,-1368.88,0.0005315,120]
[349063859,1736956294655,-1706.89,0.0005315,120]
[349063860,1736956294665,-1000.0,0.0005315,120]
[349063861,1736956294675,-918.62,0.0005315,120]
[349063862,1736956294687,-1734.94,0.0005315,120]
[349063863,1736956294697,-500.0,0.0005315,120]
[349063864,1736956294708,-500.0,0.0005315,120]
[349063865,1736956294721,-500.0,0.0005315,120]
[349063866,1736956294731,-2711.34,0.0005315,120]
[349063867,1736956294743,-1192.56,0.0005315,120]
[349063868,1736956294754,-823.64,0.0005315,120]
[349063869,1736956294766,-500.0,0.0005315,120]
[349063870,1736956294776,-945.57,0.0005315,120]
[349063871,1736956294787,-500.0,0.0005315,120]
[349063872,1736956294798,-500.0,0.0005315,120]
[349063873,1736956294808,-500.0,0.0005315,10]
[349063874,1736956294818,-686.03,0.0005315,120]
[349063875,1736956294828,-500.0,0.0005315,120]
[349063876,1736956294840,-500.0,0.0005315,120]
[349063877,1736956294852,-500.0,0.0005315,120]
[349063878,1736956294862,-1841.61,0.0005315,120]
[349063879,1736956294872,-500.0,0.0005315,120]
[349063880,1736956294882,-751.34,0.0005315,120]
[349063881,1736956294893,-500.0,0.0005315,120]
[349063882,1736956294904,-702.95,0.0005315,120]
[349063883,1736956294914,-931.44,0.0005315,120]
[349063884,1736956294925,-1001.04,0.0005315,120]
[349063885,1736956294935,-500.0,0.0005315,120]
[349063886,1736956294946,-497.61496284,0.0005315,120]
[349063887,1736956294956,-3022.65,0.0005315,2]
[349063888,1736956294968,-500.0,0.0005315,120]
[349063889,1736956294978,-1356.86,0.0005315,120]
[349063890,1736956294989,-1183.26,0.0005315,120]
[349063891,1736956294998,-1246.12,0.0005315,120]
[349063892,1736956295008,-1984.29,0.0005315,120]
[349063893,1736956295019,-755.66,0.0005315,120]
[349063894,1736956295030,-432.78070053,0.0005315,120]
[349063895,1736956295041,-501.89762231,0.0005315,120]
[349063896,1736956295051,-820.04,0.0005315,120]
[349063897,1736956295061,-500.0,0.0005315,120]
[349063898,1736956295071,-894.5,0.0005315,120]
[349063899,1736956295081,-500.0,0.0005315,120]
[349063900,1736956295091,-1558.7,0.0005315,120]
[349063901,1736956295101,-500.0,0.0005315,120]
[349063902,1736956295111,-1821.33,0.0005315,120]
[349063903,1736956295121,-2247.77,0.0005315,120]
[349063904,1736956295131,-500.0,0.0005315,120]
[349063905,1736956295142,-500.0,0.0005315,120]
[349063906,1736956295152,-1132.68,0.0005315,120]
[349063907,1736956295163,-779.1,0.0005315,120]
[349063908,1736956295173,-500.0,0.0005315,120]
[349063909,1736956295183,-500.0,0.0005315,120]
[349063910,1736956295193,-500.0,0.0005315,120]
[349063911,1736956295203,-500.0,0.0005315,120]
[349063912,1736956295213,-500.0,0.0005315,120]
[349063913,1736956295225,-500.0,0.0005315,120]
[349063914,1736956295235,-500.0,0.0005315,120]
[349063915,1736956295246,-740.68,0.0005315,120]
[349063916,1736956295255,-1291.55,0.0005315,120]
[349063917,1736956295266,-500.0,0.0005315,120]
[349063918,1736956295276,-500.0,0.0005315,120]
[349063919,1736956295286,-500.0,0.0005315,120]
[349063920,1736956295296,-500.0,0.0005315,120]
[349063921,1736956295305,-344.1418616,0.0005315,120]
[349063922,1736956295315,-500.0,0.0005315,120]
[349063923,1736956295326,-1339.34,0.0005315,120]
[349063924,1736956295335,-500.0,0.0005315,120]
[349063925,1736956295346,-500.0,0.0005315,120]
[349063926,1736956295356,-500.0,0.0005315,120]
[349063927,1736956295366,-500.0,0.0005315,120]
[349063928,1736956295376,-798.98,0.0005315,120]
[349063929,1736956295386,-1557.71,0.0005315,120]
[349063930,1736956295395,-1817.75,0.0005315,120]
[349063931,1736956295406,-500.0,0.0005315,120]
[349063932,1736956295416,-500.0,0.0005315,120]
[349063933,1736956295425,-500.0,0.0005315,120]
[349063934,1736956295434,-500.0,0.0005315,120]
[349063935,1736956295444,-500.0,0.0005315,120]
[349063936,1736956295454,-500.0,0.0005315,120]
[349063937,1736956295465,-500.0,0.0005315,120]
[349063938,1736956295476,-3637.12,0.0005315,30]
[349063939,1736956295487,-500.0,0.0005315,120]
[349063940,1736956295497,-500.0,0.0005315,120]
[349063941,1736956295507,-207.615294,0.0005315,120]
[349063942,1736956295519,-500.0,0.0005315,120]
[349063943,1736956295529,-2872.55,0.0005315,120]
[349063944,1736956295539,-829.27,0.0005315,120]
[349063945,1736956295550,-1000.0,0.0005315,120]
[349063946,1736956295560,-2750.24,0.0005315,90]
[349063947,1736956295570,-1310.61,0.0005315,120]
[349063948,1736956295580,-207.615294,0.0005315,120]
[349063949,1736956295590,-500.0,0.0005315,120]
[349063950,1736956295600,-642.58,0.0005315,120]
[349063951,1736956295611,-2341.21,0.0005315,120]
[349063952,1736956295621,-500.0,0.0005315,120]
[349063953,1736956295631,-706.15,0.0005315,120]
[349063954,1736956295641,-500.0,0.0005315,120]
[349063955,1736956295651,-500.0,0.0005315,120]
[349063956,1736956295662,-506.29581956,0.0005315,120]
[349063957,1736956295672,-500.0,0.0005315,120]
[349063958,1736956295682,-500.0,0.0005315,120]
[349063959,1736956295692,-1041.56,0.0005315,120]
[349063960,1736956295703,-500.0,0.0005315,120]
[349063961,1736956295713,-500.0,0.0005315,120]
[349063962,1736956295727,-500.0,0.0005315,120]
[349063963,1736956295738,-500.0,0.0005315,120]
[349063964,1736956295750,-500.0,0.0005315,120]
[349063965,1736956295762,-500.0,0.0005315,120]
[349063966,1736956295772,-3227.41,0.0005315,120]
[349063967,1736956295782,-500.0,0.0005315,120]
[349063968,1736956295794,-500.0,0.0005315,120]
[349063969,1736956295804,-500.0,0.0005315,120]
[349063970,1736956295813,-500.0,0.0005315,120]
[349063971,1736956295823,-1148.7,0.0005315,120]
[349063972,1736956295834,-1179.9,0.0005315,120]
[349063973,1736956295845,-500.0,0.0005315,120]
[349063974,1736956295855,-500.0,0.0005315,120]
[349063975,1736956295865,-500.0,0.0005315,120]
[349063976,1736956295874,-500.0,0.0005315,120]
[349063977,1736956295884,-534.35,0.0005315,120]
[349063978,1736956295894,-223.68782817,0.0005315,120]
[349063979,1736956295904,-500.0,0.0005315,120]
[349063980,1736956295914,-500.0,0.0005315,120]
[349063981,1736956295924,-500.0,0.0005315,120]
[349063982,1736956295934,-500.0,0.0005315,120]
[349063983,1736956295944,-778.85,0.0005315,120]
[349063984,1736956295954,-500.0,0.0005315,120]
[349063985,1736956295964,-371.63755506,0.0005315,120]
[349063986,1736956295976,-500.0,0.0005315,120]
[349063987,1736956295987,-324.60692331,0.0005315,120]
[349063988,1736956295998,-806.4,0.0005315,120]
[349063989,1736956296008,-500.0,0.0005315,120]
[349063990,1736956296018,-1518.02,0.0005315,120]
[349063991,1736956296027,-509.62,0.0005315,120]
[349063992,1736956296038,-500.0,0.0005315,120]
[349063993,1736956296048,-500.0,0.0005315,120]
[349063994,1736956296059,-500.0,0.0005315,120]
[349063995,1736956296070,-500.0,0.0005315,120]
[349063996,1736956296081,-500.0,0.0005315,120]
[349063997,1736956296091,-644.08,0.0005315,120]
[349063998,1736956296101,-1713.52,0.0005315,120]
[349063999,1736956296112,-500.0,0.0005315,120]
[349064000,1736956296123,-500.0,0.0005315,120]
[349064001,1736956296133,-500.0,0.0005315,2]
[349064002,1736956296143,-521.75,0.0005315,120]
[349064003,1736956296153,-500.0,0.0005315,120]
[349064004,1736956296163,-500.0,0.0005315,120]
[349064005,1736956296173,-500.0,0.0005315,120]
[349064006,1736956296183,-1191.65,0.0005315,120]
[349064007,1736956296194,-500.0,0.0005315,120]
[349064008,1736956296204,-506.80095657,0.0005315,120]
[349064009,1736956296215,-500.0,0.0005315,30]
[349064010,1736956296228,-3167.13,0.0005315,120]
[349064011,1736956296239,-500.0,0.0005315,120]
[349064012,1736956296249,-1915.01,0.0005315,120]
[349064013,1736956296259,-500.0,0.0005315,120]
[349064014,1736956296269,-500.0,0.0005315,120]
[349064015,1736956296279,-500.0,0.0005315,120]
[349064016,1736956296289,-2872.11,0.0005315,120]
[349064017,1736956296299,-500.0,0.0005315,120]
[349064018,1736956296309,-814.94,0.0005315,120]
[349064019,1736956296318,-500.0,0.0005315,120]
[349064020,1736956296329,-1905.0,0.0005315,120]
[349064021,1736956296339,-625.0,0.0005315,120]
[349064022,1736956296349,-510.06,0.0005315,120]
[349064023,1736956296359,-1608.41,0.0005315,120]
[349064024,1736956296368,-500.0,0.0005315,120]
[349064025,1736956296378,-849.44,0.0005315,120]
[349064026,1736956296388,-500.0,0.0005315,120]
[349064027,1736956296398,-500.0,0.0005315,120]
[349064028,1736956296408,-769.37,0.0005315,120]
[349064029,1736956296418,-500.0,0.0005315,120]
[349064030,1736956296427,-500.0,0.0005315,120]
[349064031,1736956296437,-500.0,0.0005315,120]
[349064032,1736956296447,-645.83,0.0005315,120]
[349064033,1736956296456,-500.0,0.0005315,120]
[349064034,1736956296467,-500.0,0.0005315,120]
[349064035,1736956296478,-500.0,0.0005315,120]
[349064036,1736956296488,-2038.04,0.0005315,120]
[349064037,1736956296499,-500.0,0.0005315,120]
[349064038,1736956296509,-500.0,0.0005315,120]
[349064039,1736956296519,-611.36,0.0005315,120]
[349064040,1736956296529,-500.0,0.0005315,120]
[349064041,1736956296539,-374.47664706,0.0005315,120]
[349064042,1736956296549,-500.0,0.0005315,120]
[349064043,1736956296559,-502.91779113,0.0005315,120]
[349064044,1736956296570,-606.95,0.0005315,120]
[349064045,1736956296580,-500.0,0.0005315,120]
[349064046,1736956296590,-500.0,0.0005315,120]
[349064047,1736956296599,-342.97632959,0.0005315,120]
[349064048,1736956296609,-743.6,0.0005315,120]
[349064049,1736956296620,-500.0,0.0005315,120]
[349064050,1736956296630,-500.0,0.0005315,120]
[349064051,1736956296640,-151.011408,0.00053198,120]
[349064052,1736956296651,-2035.72818657,0.00053233,120]
[349064053,1736956296660,-290.44497076,0.00053233,51]
[349064054,1736956296670,-319.66,0.000533,60]
[349064055,1736956296680,-443.81605981,0.0005331,2]
[349064056,1736956296690,-500.0,0.00053424,120]
[349064057,1736956296699,-500.0,0.00053424,120]
[349064058,1736956296708,-500.0,0.00053424,120]
[349064059,1736956296718,-500.0,0.00053424,120]
[349064060,1736956296730,-500.0,0.00053424,120]
[349064061,1736956296740,-500.0,0.00053424,120]
[349064062,1736956296754,-500.0,0.00053424,120]
[349064063,1736956296766,-500.0,0.00053424,120]
[349064064,1736956296775,-512.84176081,0.00053424,120]
[349064065,1736956296785,-500.0,0.00053424,120]
[349064066,1736956296796,-500.0,0.00053424,120]
[349064067,1736956296805,-507.51837772,0.00053424,120]
[349064068,1736956296815,-500.0,0.00053424,120]
[349064069,1736956296825,-500.0,0.00053424,120]
[349064070,1736956296837,-500.0,0.00053424,120]
[349064071,1736956296849,-500.0,0.00053424,120]
[349064072,1736956296859,-500.0,0.00053424,120]
[349064073,1736956296870,-500.0,0.00053424,120]
[349064074,1736956296880,-500.0,0.00053424,120]
[349064075,1736956296890,-500.0,0.00053424,120]
[349064076,1736956296902,-500.0,0.00053424,120]
[349064077,1736956296912,-500.0,0.00053424,120]
[349064078,1736956296922,-500.0,0.00053424,120]
[349064079,1736956296932,-500.0,0.00053424,120]
[349064080,1736956296942,-500.0,0.00053424,120]
[349064081,1736956296952,-500.0,0.00053424,120]
[349064082,1736956296962,-500.0,0.00053424,120]
[349064083,1736956296979,-500.0,0.00053424,120]
[349064084,1736956296988,-500.0,0.00053424,120]
[349064085,1736956296997,-500.0,0.00053424,120]
[349064086,1736956297007,-500.0,0.00053424,120]
[349064087,1736956297018,-500.0,0.00053424,120]
[349064088,1736956297028,-500.0,0.00053424,120]
[349064089,1736956297037,-500.0,0.00053424,120]
[349064090,1736956297048,-500.0,0.00053424,120]
[349064091,1736956297058,-500.0,0.00053424,2]
[349064092,1736956297068,-500.0,0.00053424,120]
[349064093,1736956297078,-500.0,0.00053424,120]
[349064094,1736956297088,-1200.0,0.00053424,2]
[349064095,1736956297098,-500.0,0.00053424,120]
[349064096,1736956297108,-500.0,0.00053424,120]
[349064097,1736956297118,-369.65308069,0.00053424,120]
[349064098,1736956297129,-500.0,0.00053424,120]
[349064099,1736956297140,-500.0,0.00053424,120]
[349064100,1736956297150,-500.0,0.00053424,120]
[349064101,1736956297160,-500.0,0.00053424,120]
[349064102,1736956297170,-500.0,0.00053424,120]
[349064103,1736956297180,-500.0,0.00053424,120]
[349064104,1736956297189,-500.0,0.00053424,120]
[349064105,1736956297199,-500.0,0.00053424,120]
[349064106,1736956297209,-502.64147433,0.00053424,120]
[349064107,1736956297219,-500.0,0.00053424,120]
[349064108,1736956297229,-500.0,0.00053424,120]
[349064109,1736956297239,-500.0,0.00053424,120]
[349064110,1736956297249,-500.0,0.00053424,120]
[349064111,1736956297258,-500.0,0.00053424,120]
[349064112,1736956297269,-500.0,0.00053424,120]
[349064113,1736956297279,-500.0,0.00053424,120]
[349064114,1736956297289,-500.0,0.00053424,120]
[349064115,1736956297298,-500.0,0.00053424,120]
[349064116,1736956297308,-500.0,0.00053424,120]
[349064117,1736956297318,-500.0,0.00053424,120]
[349064118,1736956297327,-500.0,0.00053424,120]
[349064119,1736956297337,-500.0,0.00053424,120]
[349064120,1736956297346,-500.0,0.00053424,120]
[349064121,1736956297356,-500.0,0.00053424,120]
[349064122,1736956297366,-500.0,0.00053424,60]
[349064123,1736956297549,-500.0,0.00053424,120]
[349064124,1736956297559,-413.96569332,0.00053424,120]
[349064125,1736956297569,-500.0,0.00053424,120]
[349064126,1736956297579,-500.0,0.00053424,120]
[349064127,1736956297589,-500.0,0.00053424,120]
[349064128,1736956297599,-500.0,0.00053424,120]
[349064129,1736956297609,-675.57,0.00053424,120]
[349064130,1736956297619,-500.0,0.00053424,120]
[349064131,1736956297628,-500.0,0.00053424,30]
[349064132,1736956297638,-712.55,0.00053424,120]
[349064133,1736956297648,-259.4,0.00053424,120]
[349064134,1736956297658,-500.0,0.00053424,120]
[349064135,1736956297668,-500.0,0.00053424,120]
[349064136,1736956297678,-520.78,0.00053424,120]
[349064137,1736956297688,-500.0,0.00053424,120]
[349064138,1736956297698,-500.0,0.00053424,120]
[349064139,1736956297708,-500.0,0.00053424,120]
[349064140,1736956297719,-500.0,0.00053424,120]
[349064141,1736956297728,-500.0,0.00053424,120]
[349064142,1736956297738,-507.73,0.00053424,120]
[349064143,1736956297749,-500.0,0.00053424,120]
[349064144,1736956297761,-795.66,0.00053424,120]
[349064145,1736956297771,-635.12,0.00053424,120]
[349064146,1736956297781,-500.0,0.00053424,120]
[349064147,1736956297791,-500.0,0.00053424,120]
[349064148,1736956297801,-500.0,0.00053424,120]
[349064149,1736956297811,-505.30495824,0.00053424,120]
[349064150,1736956297821,-583.33,0.00053424,120]
[349064151,1736956297832,-500.0,0.00053424,120]
[349064152,1736956297842,-500.0,0.00053424,120]
[349064153,1736956297852,-757.79,0.00053424,120]
[349064154,1736956297862,-500.0,0.00053424,120]
[349064155,1736956297871,-500.0,0.00053424,120]
[349064156,1736956297881,-500.0,0.00053424,120]
[349064157,1736956297891,-500.0,0.00053424,120]
[349064158,1736956297900,-500.0,0.00053424,120]
[349064159,1736956297910,-500.0,0.00053424,120]
[349064160,1736956297919,-500.0,0.00053424,120]
[349064161,1736956297931,-500.0,0.00053424,120]
[349064162,1736956297941,-500.0,0.00053424,120]
[349064163,1736956297951,-500.0,0.00053424,120]
[349064164,1736956297962,-500.0,0.00053424,120]
[349064165,1736956297975,-500.0,0.00053424,120]
[349064166,1736956297987,-504.4083125,0.00053424,120]
[349064167,1736956297998,-500.0,0.00053424,120]
[349064168,1736956298008,-500.0,0.00053424,120]
[349064169,1736956298019,-500.0,0.00053424,120]
[349064170,1736956298029,-500.0,0.00053424,120]
[349064171,1736956298039,-620.49,0.00053424,120]
[349064172,1736956298048,-500.0,0.00053424,120]
[349064173,1736956298058,-500.0,0.00053424,120]
[349064174,1736956298068,-694.0,0.00053424,30]
[349064175,1736956298077,-210.1327908,0.00053424,120]
[349064176,1736956298087,-693.57,0.00053424,120]
[349064177,1736956298097,-500.0,0.00053424,120]
[349064178,1736956298106,-910.12,0.00053424,120]
[349064179,1736956298115,-503.53815595,0.00053424,120]
[349064180,1736956298125,-500.0,0.00053424,120]
[349064181,1736956298135,-500.0,0.00053424,120]
[349064182,1736956298146,-500.0,0.00053424,120]
[349064183,1736956298156,-596.95,0.00053424,2]
[349064184,1736956298166,-500.0,0.00053424,120]
[349064185,1736956298177,-500.0,0.00053424,120]
[349064186,1736956298187,-500.0,0.00053424,120]
[349064187,1736956298197,-500.0,0.00053424,120]
[349064188,1736956298207,-500.0,0.00053424,120]
[349064189,1736956298219,-651.96,0.00053424,120]
[349064190,1736956298230,-306.71325745,0.00053424,120]
[349064191,1736956298240,-541.66,0.00053424,120]
[349064192,1736956298250,-823.64,0.00053424,120]
[349064193,1736956298260,-593.42286933,0.00053424,120]
[349064194,1736956298270,-500.0,0.00053424,120]
[349064195,1736956298280,-500.0,0.00053424,2]
[349064196,1736956298289,-500.0,0.00053424,120]
[349064197,1736956298299,-500.0,0.00053424,120]
[349064198,1736956298309,-991.22,0.00053424,120]
[349064199,1736956298319,-500.0,0.00053424,120]
[349064200,1736956298328,-500.0,0.00053424,120]
[349064201,1736956298338,-500.0,0.00053424,120]
[349064202,1736956298348,-500.0,0.00053424,120]
[349064203,1736956298358,-500.0,0.00053424,120]
[349064204,1736956298368,-500.0,0.00053424,30]
[349064205,1736956298377,-500.0,0.00053424,120]
[349064206,1736956298386,-500.0,0.00053424,120]
[349064207,1736956298395,-500.0,0.00053424,120]
[349064208,1736956298405,-506.53833763,0.00053424,120]
[349064209,1736956298414,-500.0,0.00053424,120]
[349064210,1736956298424,-500.0,0.00053424,120]
[349064211,1736956298434,-508.8754308,0.00053424,120]
[349064212,1736956298444,-500.0,0.00053424,120]
[349064213,1736956298453,-500.0,0.00053424,120]
[349064214,1736956298463,-713.8,0.00053424,120]
[349064215,1736956298474,-500.0,0.00053424,120]
[349064216,1736956298484,-500.0,0.00053424,120]
[349064217,1736956298495,-500.0,0.00053424,120]
[349064218,1736956298506,-500.0,0.00053424,120]
[349064219,1736956298516,-502.38613988,0.00053424,120]
[349064220,1736956298526,-500.0,0.00053424,120]
[349064221,1736956298536,-520.83,0.00053424,120]
[349064222,1736956298545,-502.96632916,0.00053424,120]
[349064223,1736956298555,-500.0,0.00053424,120]
[349064224,1736956298564,-500.0,0.00053424,120]
[349064225,1736956298575,-683.22,0.00053424,120]
[349064226,1736956298585,-500.0,0.00053424,120]
[349064227,1736956298595,-500.0,0.00053424,120]
[349064228,1736956298606,-500.0,0.00053424,120]
[349064229,1736956298616,-500.0,0.00053424,120]
[349064230,1736956298626,-500.0,0.00053424,120]
[349064231,1736956298636,-500.0,0.00053424,120]
[349064232,1736956298646,-500.0,0.00053424,120]
[349064233,1736956298656,-500.0,0.00053424,120]
[349064234,1736956298666,-500.0,0.00053424,120]
[349064235,1736956298676,-953.68,0.00053424,120]
[349064236,1736956298686,-500.0,0.00053424,120]
[349064237,1736956298696,-500.0,0.00053424,120]
[349064238,1736956298705,-500.0,0.00053424,120]
[349064239,1736956298715,-500.0,0.00053424,120]
[349064240,1736956298727,-542.48,0.00053424,120]
[349064241,1736956298737,-500.0,0.00053424,120]
[349064242,1736956298750,-500.0,0.00053424,120]
[349064243,1736956298760,-500.0,0.00053424,120]
[349064244,1736956298770,-500.0,0.00053424,120]
[349064245,1736956298780,-500.0,0.00053424,120]
[349064246,1736956298791,-1078.53,0.00053424,120]
[349064247,1736956298801,-786.0,0.00053424,120]
[349064248,1736956298810,-500.0,0.00053424,120]
[349064249,1736956298820,-500.0,0.00053424,120]
[349064250,1736956298832,-500.0,0.00053424,120]
[349064251,1736956298843,-500.0,0.00053424,120]
[349064252,1736956298853,-500.0,0.00053424,120]
[349064253,1736956298863,-500.0,0.00053424,120]
[349064254,1736956298874,-500.0,0.00053424,120]
[349064255,1736956298883,-776.98,0.00053424,120]
[349064256,1736956298893,-500.0,0.00053424,120]
[349064257,1736956298903,-500.0,0.00053424,120]
[349064258,1736956298913,-500.0,0.00053424,120]
[349064259,1736956298923,-1023.29,0.00053424,120]
[349064260,1736956298934,-767.75,0.00053424,120]
[349064261,1736956298944,-1008.37,0.00053424,120]
[349064262,1736956298954,-500.0,0.00053424,120]
[349064263,1736956298964,-500.0,0.00053424,120]
[349064264,1736956298976,-500.0,0.00053424,120]
[349064265,1736956298985,-500.0,0.00053424,120]
[349064266,1736956298995,-500.0,0.00053424,120]
[349064267,1736956299005,-500.0,0.00053424,120]
[349064268,1736956299015,-500.0,0.00053424,120]
[349064269,1736956299024,-685.34,0.00053424,120]
[349064270,1736956299033,-500.0,0.00053424,120]
[349064271,1736956299044,-500.0,0.00053424,120]
[349064272,1736956299053,-669.64,0.00053424,120]
[349064273,1736956299063,-500.0,0.00053424,120]
[349064274,1736956299073,-500.0,0.00053424,120]
[349064275,1736956299082,-956.49,0.00053424,120]
[349064276,1736956299092,-500.0,0.00053424,120]
[349064277,1736956299101,-500.0,0.00053424,120]
[349064278,1736956299111,-176.78933752,0.00053424,120]
[349064279,1736956299121,-500.0,0.00053424,120]
[349064280,1736956299131,-500.0,0.00053424,120]
[349064281,1736956299141,-500.0,0.00053424,120]
[349064282,1736956299150,-500.0,0.00053424,120]
[349064283,1736956299160,-500.0,0.00053424,120]
[349064284,1736956299170,-500.0,0.00053424,120]
[349064285,1736956299180,-500.0,0.00053424,120]
[349064286,1736956299189,-500.0,0.00053424,120]
[349064287,1736956299199,-500.0,0.00053424,120]
[349064288,1736956299209,-500.0,0.00053424,120]
[349064289,1736956299219,-500.0,0.00053424,120]
[349064290,1736956299228,-1034.79,0.00053424,120]
[349064291,1736956299238,-569.66,0.00053424,120]
[349064292,1736956299247,-500.0,0.00053424,120]
[349064293,1736956299256,-517.64089888,0.00053424,120]
[349064294,1736956299266,-500.0,0.00053424,120]
[349064295,1736956299276,-559.61259395,0.00053424,2]
[349064296,1736956299285,-578.02,0.00053424,120]
[349064297,1736956299295,-1272.04,0.00053424,120]
[349064298,1736956299304,-500.0,0.00053424,120]
[349064299,1736956299313,-500.0,0.00053424,120]
[349064300,1736956299323,-500.0,0.00053424,120]
[349064301,1736956299332,-500.0,0.00053424,120]
[349064302,1736956299342,-666.66,0.00053424,120]
[349064303,1736956299351,-500.0,0.00053424,120]
[349064304,1736956299362,-741.05,0.00053424,120]
[349064305,1736956299372,-500.0,0.00053424,120]
[349064306,1736956299382,-500.0,0.00053424,120]
[349064307,1736956299391,-579.96,0.00053424,120]
[349064308,1736956299400,-500.0,0.00053424,120]
[349064309,1736956299410,-500.0,0.00053424,120]
[349064310,1736956299420,-1069.07,0.00053424,120]
[349064311,1736956299430,-500.0,0.00053424,120]
[349064312,1736956299439,-500.0,0.00053424,120]
[349064313,1736956299448,-500.0,0.00053424,120]